fUSD/lending_fUSD_20260528
["ID","MTS","AMOUNT","RATE_DAILY","PERIOD"]
[423190720,1779913855000,-143816.0,0.000364,30]
[423190713,1779913855000,-500.0,0.00036399,120]
[423190714,1779913855000,-468.17855358,0.00036399,120]
[423190718,1779913855000,-500.0,0.00036399,120]
[423190711,1779913855000,-150.0,0.00036392,7]
[423190712,1779913855000,-500.0,0.00036399,10]
[423190725,1779913855000,-150.0,0.00036481,7]
[423190715,1779913855000,-500.0,0.00036399,120]
[423190728,1779913855000,-360.0,0.00036528,30]
[423190739,1779913855000,-150.0,0.00036839,7]
[423190729,1779913855000,-150.0,0.00036532,30]
[423190722,1779913855000,-2446.80589969,0.00036406,2]
[423190730,1779913855000,-150.0,0.00036596,7]
[423190727,1779913855000,-150.0,0.00036522,7]
[423190732,1779913855000,-150.0,0.0003667,7]
[423190733,1779913855000,-150.0,0.0003672,7]
[423190726,1779913855000,-152.0,0.00036515,4]
[423190735,1779913855000,-150.0,0.0003672,7]
[423190745,1779913855000,-509.0,0.00037021,14]
[423190736,1779913855000,-150.0,0.00036744,7]
[423190738,1779913855000,-150.0,0.00036839,7]
[423190734,1779913855000,-150.0,0.0003672,7]
[423190737,1779913855000,-150.0,0.00036819,7]
[423190709,1779913855000,-150.0,0.00036373,7]
[423190731,1779913855000,-178.0,0.0003665,120]
[423190710,1779913855000,-150.0,0.00036392,7]
[423190692,1779913855000,-150.0,0.00035928,7]
[423190707,1779913855000,-169.38,0.00036303,120]
[423190680,1779913855000,-5948.1840667,0.00035738,2]
[423190679,1779913855000,-150.0,0.00035736,7]
[423190681,1779913855000,-150.0,0.00035766,7]
[423190693,1779913855000,-150.0,0.0003597,30]
[423190682,1779913855000,-150.0,0.00035766,7]
[423190683,1779913855000,-150.0,0.00035779,7]
[423190687,1779913855000,-709.119,0.00035818,2]
[423190685,1779913855000,-1225.0,0.00035818,2]
[423190688,1779913855000,-509.0,0.00035827,13]
[423190684,1779913855000,-1272.0,0.00035818,2]
[423190686,1779913855000,-3548.0,0.00035818,2]
[423190691,1779913855000,-1200.0,0.000359,13]
[423190690,1779913855000,-150.0,0.00035854,7]
[423190719,1779913855000,-676.75,0.00036399,2]
[423190689,1779913855000,-150.0,0.00035845,7]
[423190696,1779913855000,-150.0,0.00036002,7]
[423190699,1779913855000,-775.4783256,0.00036108,2]
[423190697,1779913855000,-150.0,0.00036064,7]
[423190705,1779913855000,-150.0,0.00036299,7]
[423190703,1779913855000,-150.0,0.00036225,7]
[423190698,1779913855000,-150.0,0.00036076,7]
[423190700,1779913855000,-150.0,0.00036124,7]
[423190695,1779913855000,-874.71067795,0.00036,120]
[423190706,1779913855000,-5000.0,0.000363,2]
[423190701,1779913855000,-150.0,0.00036124,7]
[423190702,1779913855000,-150.0,0.00036151,7]
[423190704,1779913855000,-150.0,0.00036282,7]
[423190708,1779913855000,-151.95552713,0.00036306,2]
[423190694,1779913855000,-1610.00242802,0.00036,120]
[423190740,1779913855000,-150.0,0.0003688,2]
[423190741,1779913855000,-150.0,0.00036893,7]
[423190742,1779913855000,-150.0,0.00036967,7]
[423190781,1779913855000,-150.0,0.00037635,7]
[423190785,1779913855000,-800.0,0.00037687,60]
[423190784,1779913855000,-2200.0,0.00037687,60]
[423190777,1779913855000,-500.0,0.00037599,7]
[423190774,1779913855000,-500.0,0.00037599,120]
[423190782,1779913855000,-150.0,0.00037656,30]
[423190780,1779913855000,-143816.0,0.000376,30]
[423190776,1779913855000,-500.0,0.00037599,120]
[423190783,1779913855000,-178.0,0.0003768,60]
[423190787,1779913855000,-150.0,0.00037709,7]
[423190797,1779913855000,-150.0,0.00037912,7]
[423190786,1779913855000,-150.0,0.00037703,7]
[423190790,1779913855000,-500.0,0.00037767,7]
[423190795,1779913855000,-150.0,0.00037858,7]
[423190788,1779913855000,-500.0,0.00037767,120]
[423190791,1779913855000,-500.0,0.00037767,120]
[423190789,1779913855000,-500.0,0.00037767,120]
[423190792,1779913855000,-676.75,0.00037767,2]
[423190793,1779913855000,-196548.63199185,0.00037768,2]
[423190794,1779913855000,-150.0,0.00037784,7]
[423190796,1779913855000,-195.0,0.00037911,11]
[423190799,1779913855000,-150.0,0.00037932,7]
[423190800,1779913855000,-163.0,0.00037959,11]
[423190798,1779913855000,-150.0,0.00037912,7]
[423190802,1779913855000,-170.0,0.00037961,60]
[423190801,1779913855000,-500.0,0.00037961,60]
[423190805,1779913855000,-150.0,0.00038006,7]
[423190804,1779913855000,-190.7101456,0.00038,5]
[423190806,1779913855000,-150.0,0.00038031,7]
[423190779,1779913855000,-676.75,0.00037599,2]
[423190778,1779913855000,-500.0,0.00037599,120]
[423190803,1779913855000,-2317.0,0.00037993,11]
[423190773,1779913855000,-587.04747977,0.00037599,10]
[423190775,1779913855000,-383.23298155,0.00037599,120]
[423190743,1779913855000,-4000.0,0.00037,4]
[423190746,1779913855000,-500.0,0.00037034,120]
[423190748,1779913855000,-150.0,0.00037041,7]
[423190749,1779913855000,-150.0,0.00037047,7]
[423190747,1779913855000,-500.0,0.00037034,120]
[423190750,1779913855000,-150.0,0.00037094,30]
[423190754,1779913855000,-150.0,0.00037197,7]
[423190755,1779913855000,-150.0,0.00037197,7]
[423190757,1779913855000,-150.0,0.00037264,7]
[423190756,1779913855000,-151.95552709,0.00037205,2]
[423190758,1779913855000,-273.0,0.00037315,2]
[423190751,1779913855000,-150.0,0.00037116,7]
[423190753,1779913855000,-150.0,0.0003719,7]
[423190744,1779913855000,-215.46156935,0.00037,7]
[423190759,1779913855000,-150.0,0.00037338,7]
[423190752,1779913855000,-150.0,0.00037157,7]
[423190760,1779913855000,-150.0,0.00037375,7]
[423190764,1779913855000,-348.48395303,0.000374,30]
[423190763,1779913855000,-348.48395305,0.000374,30]
[423190765,1779913855000,-348.48395303,0.000374,30]
[423190766,1779913855000,-229.68302647,0.000374,30]
[423190769,1779913855000,-150.0,0.00037554,7]
[423190762,1779913855000,-150.0,0.00037375,7]
[423190770,1779913855000,-150.0,0.00037554,7]
[423190768,1779913855000,-150.0,0.00037487,7]
[423190772,1779913855000,-150.0,0.00037594,7]
[423190761,1779913855000,-150.0,0.00037375,7]
[423190767,1779913855000,-150.0,0.00037412,7]
[423190771,1779913855000,-150.0,0.00037561,7]
[423190843,1779913856000,-2400.0,0.000386,14]
[423190845,1779913856000,-1589.0,0.00038618,11]
[423190850,1779913856000,-150.0,0.00038674,7]
[423190851,1779913856000,-1589.0,0.00038685,11]
[423190849,1779913856000,-236.0,0.0003867,2]
[423190842,1779913856000,-163.0,0.00038599,11]
[423190838,1779913856000,-1800.0,0.000385,14]
[423190840,1779913856000,-800.0,0.00038509,60]
[423190844,1779913856000,-150.0,0.000386,7]
[423190832,1779913856000,-798.08383,0.000384,10]
[423190841,1779913856000,-150.0,0.00038526,7]
[423190839,1779913856000,-2200.0,0.00038509,60]
[423190856,1779913856000,-150.0,0.00038749,7]
[423190846,1779913856000,-163.0,0.00038618,11]
[423190847,1779913856000,-150.0,0.00038627,7]
[423190852,1779913856000,-150.0,0.00038687,7]
[423190854,1779913856000,-178.0,0.0003871,105]
[423190853,1779913856000,-3100.0,0.000387,14]
[423190859,1779913856000,-163.0,0.00038783,11]
[423190858,1779913856000,-150.0,0.0003878,120]
[423190857,1779913856000,-163.0,0.00038778,11]
[423190855,1779913856000,-150.0,0.00038724,2]
[423190861,1779913856000,-600.0,0.000388,14]
[423190860,1779913856000,-143816.0,0.000388,30]
[423190835,1779913856000,-1589.0,0.00038445,11]
[423190862,1779913856000,-1272.0,0.00038818,2]
[423190848,1779913856000,-150.0,0.00038627,7]
[423190831,1779913856000,-150.0,0.00038377,7]
[423190820,1779913856000,-150.0,0.00038218,120]
[423190834,1779913856000,-2317.0,0.00038432,11]
[423190865,1779913856000,-150.0,0.00038823,7]
[423190809,1779913856000,-150.0,0.00038081,7]
[423190810,1779913856000,-151.95552709,0.00038103,2]
[423190808,1779913856000,-150.0,0.00038031,7]
[423190807,1779913856000,-150.0,0.00038031,7]
[423190812,1779913856000,-2317.0,0.00038138,11]
[423190822,1779913856000,-150.0,0.00038269,7]
[423190824,1779913856000,-150.0,0.00038303,7]
[423190823,1779913856000,-150.0,0.00038269,7]
[423190811,1779913856000,-2317.0,0.00038112,11]
[423190813,1779913856000,-150.0,0.00038155,7]
[423190817,1779913856000,-150.0,0.0003821,2]
[423190833,1779913856000,-2000.0,0.00038414,21]
[423190814,1779913856000,-330.0,0.00038176,49]
[423190821,1779913856000,-150.0,0.00038229,7]
[423190819,1779913856000,-509.0,0.00038215,15]
[423190816,1779913856000,-150.0,0.0003821,2]
[423190818,1779913856000,-150.0,0.0003821,2]
[423190826,1779913856000,-178.16600372,0.00038356,30]
[423190836,1779913856000,-150.0,0.00038452,7]
[423190837,1779913856000,-150.0,0.00038468,7]
[423190825,1779913856000,-163.2,0.00038356,60]
[423190830,1779913856000,-150.0,0.00038359,7]
[423190829,1779913856000,-150.0,0.00038359,7]
[423190828,1779913856000,-1549.0,0.00038356,30]
[423190827,1779913856000,-223.65903365,0.00038356,2]
[423190815,1779913856000,-12694.84401468,0.00038191,2]
[423190864,1779913856000,-3548.0,0.00038818,2]
[423190869,1779913856000,-600.0,0.000389,14]
[423190867,1779913856000,-410.0,0.00038884,2]
[423190896,1779913856000,-1000.0,0.00039131,120]
[423190897,1779913856000,-618.833671,0.00039134,120]
[423190900,1779913856000,-152.0,0.00039148,7]
[423190902,1779913856000,-163.0,0.00039153,11]
[423190903,1779913856000,-161.3,0.00039187,120]
[423190901,1779913856000,-735.79,0.00039152,120]
[423190904,1779913856000,-150.0,0.00039194,7]
[423190914,1779913856000,-2446.80589969,0.00039257,2]
[423190906,1779913856000,-152.0,0.00039203,7]
[423190907,1779913856000,-161.3,0.00039237,120]
[423190915,1779913856000,-379.63241038,0.00039257,2]
[423190905,1779913856000,-735.79,0.00039202,120]
[423190916,1779913856000,-2562.66846615,0.00039257,2]
[423190909,1779913856000,-2317.0,0.00039251,11]
[423190908,1779913856000,-1589.0,0.00039239,11]
[423190913,1779913856000,-152.0,0.00039257,7]
[423190910,1779913856000,-735.79534275,0.00039252,120]
[423190911,1779913856000,-1589.0,0.00039256,11]
[423190912,1779913856000,-152.0,0.00039257,7]
[423190917,1779913856000,-150.0,0.00039268,7]
[423190919,1779913856000,-410.0,0.00039306,2]
[423190920,1779913856000,-152.0,0.00039312,7]
[423190918,1779913856000,-161.3,0.00039287,120]
[423190923,1779913856000,-1100.0,0.00039315,30]
[423190921,1779913856000,-150.0,0.00039315,30]
[423190863,1779913856000,-1225.0,0.00038818,2]
[423190924,1779913856000,-1100.0,0.00039315,30]
[423190899,1779913856000,-152.0,0.00039148,7]
[423190892,1779913856000,-2316.0,0.00039098,11]
[423190922,1779913856000,-1100.0,0.00039315,30]
[423190894,1779913856000,-735.79,0.00039102,120]
[423190898,1779913856000,-161.3,0.00039137,120]
[423190877,1779913856000,-500.0,0.00038979,120]
[423190868,1779913856000,-150.0,0.00038897,7]
[423190871,1779913856000,-150.0,0.00038905,7]
[423190876,1779913856000,-500.0,0.00038979,7]
[423190873,1779913856000,-2314.0,0.00038953,11]
[423190874,1779913856000,-150.0,0.00038971,7]
[423190870,1779913856000,-1549.0,0.00038904,30]
[423190872,1779913856000,-1589.0,0.00038936,11]
[423190875,1779913856000,-500.0,0.00038979,120]
[423190879,1779913856000,-150.0,0.00038985,7]
[423190890,1779913856000,-200.0,0.00039056,20]
[423190889,1779913856000,-350.0,0.00039048,2]
[423190866,1779913856000,-731.31991557,0.00038847,2]
[423190880,1779913856000,-150.0,0.00038985,7]
[423190893,1779913856000,-300.0,0.00039099,120]
[423190878,1779913856000,-2000.0,0.0003898,108]
[423190891,1779913856000,-161.3,0.00039087,120]
[423190888,1779913856000,-150.0,0.00039046,7]
[423190883,1779913856000,-1144.65003325,0.00039,120]
[423190895,1779913856000,-150.0,0.0003912,7]
[423190881,1779913856000,-500.0,0.00038999,120]
[423190885,1779913856000,-151.95552709,0.00039002,2]
[423190882,1779913856000,-676.75,0.00038999,2]
[423190886,1779913856000,-163.0,0.00039005,11]
[423190884,1779913856000,-35925.61554766,0.00039,120]
[423190887,1779913856000,-150.0,0.00039015,7]
[423190965,1779913857000,-1100.0,0.00039315,30]
[423190964,1779913857000,-1100.0,0.00039315,30]
[423190961,1779913857000,-1100.0,0.00039315,30]
[423190958,1779913857000,-1100.0,0.00039315,30]
[423190957,1779913857000,-1100.0,0.00039315,30]
[423190959,1779913857000,-1100.0,0.00039315,30]
[423190966,1779913857000,-1100.0,0.00039315,30]
[423190956,1779913857000,-1100.0,0.00039315,30]
[423190955,1779913857000,-1100.0,0.00039315,30]
[423190960,1779913857000,-1100.0,0.00039315,30]
[423190963,1779913857000,-1100.0,0.00039315,30]
[423190967,1779913857000,-557.0,0.00039315,30]
[423190968,1779913857000,-2200.0,0.00039331,60]
[423190969,1779913857000,-800.0,0.00039331,60]
[423190978,1779913857000,-150.0,0.00039342,7]
[423190976,1779913857000,-150.0,0.00039342,7]
[423190972,1779913857000,-150.0,0.00039342,120]
[423190970,1779913857000,-161.3,0.00039337,120]
[423190971,1779913857000,-1077.68,0.00039339,30]
[423190975,1779913857000,-150.0,0.00039342,7]
[423190974,1779913857000,-150.0,0.00039342,7]
[423190973,1779913857000,-150.0,0.00039342,7]
[423190953,1779913857000,-1100.0,0.00039315,30]
[423190979,1779913857000,-150.75430883,0.00039342,7]
[423190962,1779913857000,-1100.0,0.00039315,30]
[423190947,1779913857000,-1100.0,0.00039315,30]
[423190937,1779913857000,-1100.0,0.00039315,30]
[423190952,1779913857000,-1100.0,0.00039315,30]
[423190977,1779913857000,-150.00000001,0.00039342,7]
[423190926,1779913857000,-1100.0,0.00039315,30]
[423190928,1779913857000,-1100.0,0.00039315,30]
[423190925,1779913857000,-1100.0,0.00039315,30]
[423190927,1779913857000,-1100.0,0.00039315,30]
[423190929,1779913857000,-1100.0,0.00039315,30]
[423190930,1779913857000,-1100.0,0.00039315,30]
[423190932,1779913857000,-1100.0,0.00039315,30]
[423190941,1779913857000,-1100.0,0.00039315,30]
[423190931,1779913857000,-1100.0,0.00039315,30]
[423190935,1779913857000,-1100.0,0.00039315,30]
[423190933,1779913857000,-1100.0,0.00039315,30]
[423190945,1779913857000,-1100.0,0.00039315,30]
[423190934,1779913857000,-1100.0,0.00039315,30]
[423190939,1779913857000,-1100.0,0.00039315,30]
[423190938,1779913857000,-1100.0,0.00039315,30]
[423190942,1779913857000,-1100.0,0.00039315,30]
[423190940,1779913857000,-1100.0,0.00039315,30]
[423190943,1779913857000,-1100.0,0.00039315,30]
[423190954,1779913857000,-1100.0,0.00039315,30]
[423190950,1779913857000,-1100.0,0.00039315,30]
[423190949,1779913857000,-1100.0,0.00039315,30]
[423190946,1779913857000,-1100.0,0.00039315,30]
[423190948,1779913857000,-1100.0,0.00039315,30]
[423190944,1779913857000,-1100.0,0.00039315,30]
[423190951,1779913857000,-1100.0,0.00039315,30]
[423190936,1779913857000,-1100.0,0.00039315,30]
[423190981,1779913857000,-151.0,0.00039344,14]
[423190993,1779913857000,-500.0,0.00039346,7]
[423190983,1779913857000,-250.0,0.00039345,7]
[423191013,1779913857000,-676.75,0.00039356,2]
[423191012,1779913857000,-676.75,0.00039356,2]
[423191018,1779913857000,-676.75,0.00039356,2]
[423191019,1779913857000,-676.75,0.00039356,2]
[423191021,1779913857000,-676.75,0.00039356,2]
[423191016,1779913857000,-676.75,0.00039356,2]
[423191020,1779913857000,-676.75,0.00039356,2]
[423191028,1779913857000,-151.0,0.00039357,2]
[423191022,1779913857000,-676.75,0.00039356,2]
[423191027,1779913857000,-155.0,0.00039357,120]
[423191023,1779913857000,-676.75,0.00039356,2]
[423191024,1779913857000,-676.75,0.00039356,2]
[423191017,1779913857000,-676.75,0.00039356,2]
[423191025,1779913857000,-676.75,0.00039356,2]
[423191026,1779913857000,-676.88566396,0.00039356,2]
[423191029,1779913857000,-491606.83823516,0.00039357,30]
[423191030,1779913857000,-2062.6,0.00039357,30]
[423191031,1779913857000,-21110.09578761,0.00039357,30]
[423191035,1779913857000,-189.69,0.00024658,2]
[423191033,1779913857000,-5063.0066346,0.00039357,30]
[423191036,1779913857000,-10512.00016214,0.00039357,30]
[423191032,1779913857000,-306.30152267,0.00039357,30]
[423191034,1779913857000,-151.0,0.000123,2]
[423191038,1779913857000,-753850.00000038,0.00039357,30]
[423191037,1779913857000,-14237.61553022,0.00039357,30]
[423191008,1779913857000,-361.0,0.00039347,120]
[423191009,1779913857000,-334.4,0.00039349,30]
[423190980,1779913857000,-150.0,0.00039342,7]
[423191006,1779913857000,-151.0,0.00039347,120]
[423191007,1779913857000,-164.0,0.00039347,120]
[423190982,1779913857000,-393.03314702,0.00039344,2]
[423190990,1779913857000,-500.0,0.00039346,7]
[423190984,1779913857000,-56959.87451476,0.00039345,2]
[423190987,1779913857000,-500.0,0.00039346,120]
[423190985,1779913857000,-207.39681573,0.00039345,2]
[423190988,1779913857000,-500.0,0.00039346,120]
[423190986,1779913857000,-500.0,0.00039346,120]
[423190989,1779913857000,-500.0,0.00039346,120]
[423190994,1779913857000,-500.0,0.00039346,7]
[423190992,1779913857000,-500.0,0.00039346,7]
[423191002,1779913857000,-249.0,0.00039347,120]
[423190995,1779913857000,-500.0,0.00039346,7]
[423190991,1779913857000,-500.0,0.00039346,7]
[423190996,1779913857000,-500.0,0.00039346,7]
[423191011,1779913857000,-676.75,0.00039356,2]
[423191010,1779913857000,-676.75,0.00039356,2]
[423190997,1779913857000,-500.0,0.00039346,7]
[423191003,1779913857000,-155.0,0.00039347,120]
[423191015,1779913857000,-676.75,0.00039356,2]
[423191014,1779913857000,-676.75,0.00039356,2]
[423191005,1779913857000,-177.0,0.00039347,120]
[423191000,1779913857000,-153.0,0.00039347,120]
[423190999,1779913857000,-488.48,0.00039346,120]
[423191001,1779913857000,-151.0,0.00039347,120]
[423190998,1779913857000,-500.0,0.00039346,120]
[423191004,1779913857000,-153.0,0.00039347,120]
[423191050,1779913858000,-1000.88383104,0.00039357,30]
[423191040,1779913858000,-1526.97195039,0.00029818,2]
[423191039,1779913858000,150.0,0.0001254,7]
[423191042,1779913858000,-3637.0,0.00032818,2]
[423191041,1779913858000,-2110.02804961,0.00029818,2]
[423191044,1779913858000,-200.0,0.00037535,12]
[423191043,1779913858000,-3637.0,0.00035818,2]
[423191049,1779913858000,-605.53870129,0.00039357,30]
[423191051,1779913858000,-2586.23792601,0.00039357,30]
[423191046,1779913858000,-4715.80698009,0.00039357,30]
[423191047,1779913858000,-1607.31682698,0.00039357,30]
[423191057,1779913858000,-275.59399998,0.00039357,30]
[423191052,1779913858000,-1454.34702,0.00039357,30]
[423191048,1779913858000,-708.81032365,0.00039357,30]
[423191053,1779913858000,-845.0235,0.00039357,30]
[423191054,1779913858000,-1992.8081555,0.00039357,30]
[423191056,1779913858000,-1535.21737408,0.00039357,30]
[423191055,1779913858000,-279.458431,0.00039357,30]
[423191045,1779913858000,-3637.0,0.00038818,2]
[423191061,1779914130000,60.45307524,0.0001,2]
[423191060,1779914130000,150.0,0.0001,2]
[423191064,1779914851000,-99.20949734,0.000119,2]
[423191063,1779914851000,-151.0,0.000118,2]
[423191062,1779914851000,-272.2166,0.000117,2]
[423191066,1779914949000,-181.53184243,0.00012039,2]
[423191065,1779914949000,-51.79050266,0.000119,2]
[423191067,1779914951000,-253.74144615,0.00012039,2]
[423191069,1779914955000,-50.16417995,0.00012071,2]
[423191068,1779914955000,-316.91835742,0.00012039,2]
[423191082,1779914959000,-500.0,0.00012541,2]
[423191070,1779914959000,-116.35582005,0.00012071,2]
[423191072,1779914959000,-1200.0,0.00012539,2]
[423191073,1779914959000,-1200.0,0.0001254,2]
[423191074,1779914959000,-150.0,0.0001254,2]
[423191075,1779914959000,-500.0,0.00012541,2]
[423191076,1779914959000,-500.0,0.00012541,2]
[423191077,1779914959000,-500.0,0.00012541,2]
[423191078,1779914959000,-500.0,0.00012541,2]
[423191079,1779914959000,-500.0,0.00012541,2]
[423191081,1779914959000,-500.0,0.00012541,2]
[423191080,1779914959000,-500.0,0.00012541,2]
[423191083,1779914959000,-500.0,0.00012541,2]
[423191071,1779914959000,-406.4562,0.00012441,2]
[423191085,1779914959000,-500.0,0.00012541,2]
[423191084,1779914959000,-500.0,0.00012541,2]
[423191098,1779914959000,-11459.49520115,0.00012542,2]
[423191097,1779914959000,-389.04648969,0.00012541,2]
[423191095,1779914959000,-500.0,0.00012541,2]
[423191094,1779914959000,-500.0,0.00012541,2]
[423191093,1779914959000,-500.0,0.00012541,2]
[423191096,1779914959000,-500.0,0.00012541,2]
[423191091,1779914959000,-500.0,0.00012541,2]
[423191090,1779914959000,-433.81983149,0.00012541,2]
[423191089,1779914959000,-500.0,0.00012541,2]
[423191088,1779914959000,-500.0,0.00012541,2]
[423191086,1779914959000,-500.0,0.00012541,2]
[423191087,1779914959000,-500.0,0.00012541,2]
[423191092,1779914959000,-500.0,0.00012541,2]
[423191114,1779915032000,-228.38447104,0.0001296,2]
[423191116,1779915032000,-421.59519279,0.0001348,2]
[423191117,1779915032000,-499.50294632,0.0001348,2]
[423191118,1779915032000,-78.89186089,0.0001348,2]
[423191125,1779915032000,-250.0,0.00013684,2]
[423191120,1779915032000,-166.52,0.0001358,2]
[423191122,1779915032000,-9999.99,0.0001358,2]
[423191123,1779915032000,-299.99,0.0001358,2]
[423191119,1779915032000,-9999.99,0.0001348,2]
[423191112,1779915032000,-215.46156935,0.00012857,2]
[423191108,1779915032000,-152.0,0.00012584,7]
[423191113,1779915032000,-208.97895572,0.00012857,2]
[423191111,1779915032000,-160.0,0.00012857,2]
[423191110,1779915032000,-148.08643745,0.00012606,7]
[423191107,1779915032000,-163.52,0.00012542,2]
[423191109,1779915032000,-3.91356255,0.00012606,7]
[423191124,1779915032000,-150.0,0.00013631,2]
[423191106,1779915032000,-13.30236755,0.00012542,2]
[423191105,1779915032000,-6688.4251313,0.00012542,2]
[423191102,1779915032000,-228.38447104,0.0001244,2]
[423191104,1779915032000,-1200.0,0.00012541,2]
[423191103,1779915032000,-300.0,0.00012541,2]
[423191115,1779915032000,-228.38447104,0.0001348,2]
[423191121,1779915032000,-150.99,0.0001358,2]
[423191139,1779915032000,-216.0,0.00021,2]
[423191128,1779915032000,-250.0,0.00014,2]
[423191126,1779915032000,-250.0,0.0001376,2]
[423191164,1779915032000,-2399.86,0.00022996,2]
[423191160,1779915032000,-166.52,0.00022633,2]
[423191162,1779915032000,-185.47,0.00022694,2]
[423191158,1779915032000,-166.66,0.00022581,2]
[423191151,1779915032000,-204.58446656,0.00022,3]
[423191156,1779915032000,-5000.0,0.00022488,2]
[423191149,1779915032000,-216.0,0.00022,2]
[423191153,1779915032000,-500.0,0.00022037,2]
[423191147,1779915032000,-150.0,0.00021646,2]
[423191143,1779915032000,-200.0,0.00021574,2]
[423191145,1779915032000,-171.5,0.00021576,2]
[423191141,1779915032000,-2000.0,0.00021391,2]
[423191138,1779915032000,-216.0,0.0002,2]
[423191135,1779915032000,-166.52,0.00018106,2]
[423191137,1779915032000,-166.52,0.00019615,2]
[423191133,1779915032000,-166.52,0.00016597,2]
[423191132,1779915032000,-583.05288368,0.00015368,2]
[423191130,1779915032000,-549.72930658,0.00014326,2]
[423191131,1779915032000,-166.52,0.00015089,2]
[423191129,1779915032000,-500.0,0.00014326,2]
[423191140,1779915032000,-166.52,0.00021124,2]
[423191127,1779915032000,-683.0,0.00013795,2]
[423191182,1779915033000,-2399.86,0.00025296,2]
[423191183,1779915033000,-500.0,0.00026,2]
[423191180,1779915033000,-2399.86,0.00024721,2]
[423191184,1779915033000,-2000.0,0.00026739,2]
[423191187,1779915033000,-177.9,0.00027742,30]
[423191186,1779915033000,-166.74,0.0002755,30]
[423191189,1779915033000,-166.66,0.00028304,30]
[423191181,1779915033000,-229.0,0.00025,2]
[423191185,1779915033000,-150.0,0.00027521,2]
[423191179,1779915033000,-1000.0,0.00024658,2]
[423191166,1779915033000,-216.0,0.00023,2]
[423191178,1779915033000,-2399.86,0.00024146,2]
[423191175,1779915033000,-216.0,0.00024,2]
[423191176,1779915033000,-2000.0,0.00024065,2]
[423191173,1779915033000,-2945.83406362,0.00024,2]
[423191171,1779915033000,-5958.7836,0.00023973,10]
[423191172,1779915033000,-1891.77931548,0.00024,2]
[423191169,1779915033000,-200.0,0.00023428,2]
[423191170,1779915033000,-2399.86,0.00023571,2]
[423191174,1779915033000,-1518.69740218,0.00024,2]
[423191168,1779915033000,-202.3,0.00023146,2]
[423191188,1779915033000,-166.74,0.00028275,7]
[423191177,1779915033000,-166.52,0.00024142,2]
[423191190,1779915033000,-177.9,0.00028371,7]
[423191194,1779915033000,-177.92,0.00029,2]
[423191192,1779915033000,-166.66,0.000289,30]
[423191216,1779915033000,-7057.02321699,0.00029718,2]
[423191213,1779915033000,-500.0,0.00029717,120]
[423191214,1779915033000,-500.0,0.00029717,2]
[423191212,1779915033000,-171.2,0.00029708,2]
[423191191,1779915033000,-150.0,0.00028897,2]
[423191211,1779915033000,-1000.0,0.000297,7]
[423191210,1779915033000,-814.33789593,0.00029681,2]
[423191208,1779915033000,-1076.15824488,0.00029681,2]
[423191203,1779915033000,-2500.0,0.00029618,2]
[423191205,1779915033000,-166.0,0.00029679,30]
[423191206,1779915033000,-153.51969951,0.00029679,30]
[423191209,1779915033000,-21197.41658986,0.00029681,2]